[Event "89_| Campeonato Brasileiro 2023"]
[Site "Recife"]
[Date "2023.12.15"]
[Round "4.1"]
[White "Piccoli, Lucas Fonseca"]
[Black "Supi, Luis Paulo"]
[Result "1/2-1/2"]
[ECO "B62"]
[WhiteElo "2244"]
[BlackElo "2579"]
[PlyCount "104"]
[EventDate "2023.??.??"]
[EventCountry "BRA"]
[TimeControl "90+30"]
[WhiteClock "0:01:27"]
[BlackClock "0:00:34"]

{[%evp 16,104,38,43,37,35,36,37,41,53,57,57,56,3,46,39,43,-9,0,-11,-4,-64,2,
-71,-78,-100,-49,-99,-97,-113,-97,-142,-154,-257,-219,-213,-88,-94,-73,-69,-74,
-79,-76,-79,-83,-68,0,0,0,0,0,0,0,0,0,0,0,0,0,0,0,0,77,0,0,-151,-137,-361,-356,
-356,-335,-325,-102,-361,-97,-286,-116,-277,-32,-235,0,-426,0,0,0,-316,0,0,0,
-315,0]} 1. e4 {[%emt 0:00:00]} c5 {[%emt 0:00:00]} 2. Nf3 {[%emt 0:00:00]} d6
{[%emt 0:00:00]} 3. d4 {[%emt 0:00:00]} cxd4 {[%emt 0:00:00]} 4. Nxd4 {[%emt 0:
00:00]} Nf6 {[%emt 0:00:00]} 5. Nc3 {[%emt 0:00:00]} Nc6 {[%emt 0:00:00]} 6.
Bg5 {[%emt 0:00:00]} e6 {[%emt 0:00:00]} 7. Qd3 {[%emt 0:00:00]} Bd7 {[%emt 0:
00:00]} 8. O-O-O {[%emt 0:00:00]} a6 {[%emt 0:00:00]} 9. f4 {[%emt 0:00:00]} h6
{[%emt 0:00:00] B62: Sicilian: Richter-Rauzer: 6...e6: Unusual White 7th moves.
} 10. Bh4 {[%emt 0:00:00]} Be7 {[%emt 0:00:00]} 11. Nf3 {[%emt 0:00:00]} Qc7 {
[%emt 0:00:00] White is slightly better.} 12. Kb1 {[%emt 0:00:00]} Rd8 {
[%emt 0:00:00]} 13. Qe3 $146 {[%emt 0:00:00]} ({Predecessor:} 13. Qd2 b5 14.
Bd3 b4 15. Ne2 Bc8 16. Rhg1 d5 17. e5 Ne4 18. Qe1 g5 19. Bg3 {0-1 (82) Van
Foreest,J (2714)-Shevchenko,K (2644) Germany 2022}) 13... b5 {[%emt 0:00:00]}
14. e5 {[%emt 0:00:00]} dxe5 {[%emt 0:00:00]} (14... Ng4 $5 {[%cal Rg4e3]} 15.
exd6 Nxe3 16. dxc7 Rc8 $11) 15. fxe5 {[%emt 0:00:00]} Ng4 {[%emt 0:00:00]} 16.
Qf4 {[%emt 0:00:00]} Ngxe5 {[%emt 0:00:00] And now ...g5 would win.} 17. Bxe7 {
[%emt 0:00:00]} Kxe7 {[%emt 0:00:00]} 18. Bd3 {[%eval -64,22] [%emt 0:00:00]} (
18. Be2 $11 {[%eval -4,24]}) 18... Qb8 {[%eval 2,28] [%emt 0:00:00]} (18... Rc8
$15 {[%eval -64,22]}) 19. Qh4+ {[%eval -71,21] [%emt 0:00:00]} (19. Nxe5 $11 {
[%eval 2,28] remains equal.} Qxe5 20. Qf3) 19... f6 $17 {[%emt 0:00:00]} 20.
Ne4 {[%emt 0:00:00]} Bc8 {[%emt 0:00:00]} 21. Rhe1 {[%emt 0:00:00]} Rhf8 {
[%emt 0:00:00]} 22. Qh5 {[%emt 0:00:00]} Rf7 {[%emt 0:00:00]} 23. Nh4 {[%emt 0:
00:00]} Kf8 {[%emt 0:00:00]} 24. Ng6+ {[%eval -257,23] [%emt 0:00:00]} (24. g4
$17 {[%eval -154,24] might work better.}) 24... Nxg6 $19 {[%emt 0:00:00]} 25.
Qxg6 {[%emt 0:00:00]} Ne5 {[%eval -88,27] [%emt 0:00:00]} (25... Qxh2 $19 {
[%eval -213,21]} 26. Rh1 Qe5) 26. Qh7 $17 {[%emt 0:00:00]} Ke7 {[%emt 0:00:00]
...Bb7 is the strong threat.} 27. Be2 {[%emt 0:00:00]} Bb7 {[%emt 0:00:00]} 28.
Rxd8 {[%emt 0:00:00]} Qxd8 {[%emt 0:00:00]} 29. Rd1 {[%emt 0:00:00]} g5 $1 {
[%emt 0:00:00]} 30. Qxh6 {[%emt 0:06:11]} Qg8 {[%eval 0,29] [%emt 0:00:00]} ({
Black should try} 30... Qf8 $15 {[%eval -68,25]} 31. Nxf6 Qxh6 32. Ng8+ {
[%mdl 64] Double Attack} Kf8 33. Nxh6 Rf2) 31. Qh3 $1 $40 {[%emt 0:00:02][%cal
Rh3a3][%mdl 128] White is up to no good.} Bxe4 {[%emt 0:00:00]} 32. Qa3+ {
[%emt 0:00:04]} Ke8 {[%emt 0:00:00] aiming for ...Qh7.} 33. Qxa6 {[%emt 0:03:
07]} Re7 {[%emt 0:00:00]} 34. Bh5+ {[%emt 0:01:11]} Ng6 {[%emt 0:00:00]} (34...
Bg6 $5 35. Rd8+ $8 {[%mdl 64] Decoy} Kxd8 36. Qa8+ Kd7 37. Qxg8 Bxh5 $11) 35.
Qc8+ $1 {[%emt 0:03:31]} Kf7 {[%emt 0:00:00]} 36. Rd8 {[%emt 0:00:15]} Qg7 {
[%emt 0:00:00]} 37. Rh8 {[%emt 0:04:18]} g4 {[%emt 0:00:00]} 38. a3 {[%emt 0:
00:21]} Bf5 {[%eval 77,34] [%emt 0:00:00]} (38... e5 $11 {[%eval 0,42]}) 39. g3
{[%eval 0,48] [%emt 0:01:00]} (39. Qd8 $16 {[%eval 77,34]}) 39... Be4 {[%emt 0:
00:51]} 40. Ka1 $2 {[%eval -151,25] [%emt 0:00:21] [#]} (40. Qd8 $11 {[%eval 0,
48]}) 40... Bxc2 $1 $17 {[%emt 0:01:58][%mdl 512]} 41. Qb8 $2 {[%eval -361,25]
[%emt 0:01:02]} (41. Qxc2 $17 {[%eval -137,24]} Qxh8 42. Qxg6+ Kf8 43. Qxg4)
41... Bf5 {[%emt 0:02:45]} 42. Qc8 {[%emt 0:00:28]} Be4 {[%emt 0:01:11]} 43.
Qd8 {[%emt 0:00:07]} Bc2 $2 {[%eval -102,28] [%emt 0:00:35]} (43... e5 $1 $19 {
[%eval -325,26] has better winning chances. Hoping for ...Bc6.} 44. b4 Bc6) 44.
Qa8 $2 {[%eval -361,30] [%emt 0:00:24][%mdl 8192] [#]} (44. Ka2 $17 {[%eval
-102,28] was the only chance.}) 44... Bd3 $2 {[%eval -97,26] [%emt 0:01:39]} (
44... b4 $1 $19 {[%eval -361,30] is more deadly.} 45. a4 (45. axb4 Qxh8) 45...
Bb3) 45. Qd8 $2 {[%eval -286,22] [%emt 0:00:05] [#]} (45. Ka2 $17 {[%eval -97,
26] was the only defense.}) 45... Bf5 {[%eval -116,29] [%emt 0:00:09]} (45...
Be4 $1 $19 {[%eval -286,22] and Black stays clearly on top.} 46. Ka2 e5) 46.
Qa8 $2 {[%eval -277,34] [%emt 0:01:02] [#]} (46. b3 $17 {[%eval -116,29] was
forced.}) 46... Be4 $2 {[%eval -32,26] [%emt 0:03:23]} ({Black should play} 
46... b4 $1 $19 {[%eval -277,34][%cal Rb4a3] Threatens to win with ...bxa3.}
47. a4 b3) 47. Qc8 $2 {[%eval -235,24] [%emt 0:00:48]} ({White has to play} 47.
Qxe4 $15 {[%eval -32,26]} Qxh8 48. Bxg6+ Kg8 49. Qxg4) 47... e5 $2 {[%eval 0,
28] [%emt 0:00:47]} (47... Bb7 $19 {[%eval -235,24]} 48. Qd8 e5) 48. Qd8 $2 {
[%eval -426,21] [%emt 0:00:39][%mdl 8192]} (48. Rd8 $1 $11 {[%eval 0,28] and
White has nothing to worry.}) 48... Ke6 $2 {[%eval 0,28] [%emt 0:08:16]} ({
Better is} 48... Bc6 $19 {[%eval -426,21] Strongly threatening ...Bb7.} 49. b3
Bd7 50. Bxg6+ Qxg6 51. Rf8+ Ke6 52. Qb6+ Kf5 53. Qf2+ Kg5 54. h4+ Kh5 55. Rxf6
Qd3) 49. Qc8+ $1 $11 {[%emt 0:00:30]} Kf7 {[%emt 0:00:28] White must now
prevent ...Bd5.} 50. Qd8 $2 {[%eval -316,22] [%emt 0:00:22][%mdl 8192]} (50.
Rd8 $1 $11 {[%eval 0,28]}) 50... Ke6 {[%emt 0:03:25]} 51. Qc8+ $1 {[%emt 0:00:
03]} Kf7 {[%emt 0:00:57]} 52. Qd8 {[%emt 0:00:12]} Ke6 $2 {[%eval 0,56] [%emt
0:00:32] Accuracy: White = 50%, Black = 53%.} (52... Bc6 $19 {[%eval -315,20]}
53. b3 Bd7 54. Bxg6+ Qxg6 55. Rf8+ Ke6 56. Qb6+ Kf5 57. Qf2+ Kg5 58. h4+ Kh5
59. Rxf6 Qd3) 1/2-1/2

[Event "89_| Campeonato Brasileiro 2023"]
[Site "Recife"]
[Date "2023.12.15"]
[Round "4.2"]
[White "Rocha, Vitor Firmo de Souz"]
[Black "Fier, Alexandr"]
[Result "0-1"]
[ECO "B44"]
[WhiteElo "2207"]
[BlackElo "2545"]
[PlyCount "66"]
[EventDate "2023.??.??"]
[EventCountry "BRA"]
[TimeControl "90+30"]
[WhiteClock "0:23:18"]
[BlackClock "0:58:51"]

1. e4 {[%emt 0:00:00]} c5 {[%emt 0:00:00]} 2. Nf3 {[%emt 0:00:00]} e6 {[%emt 0:
00:00]} 3. d4 {[%emt 0:00:00]} cxd4 {[%emt 0:00:00]} 4. Nxd4 {[%emt 0:00:00]}
Nc6 {[%emt 0:00:00]} 5. Nb5 {[%emt 0:00:00]} d6 {[%emt 0:00:00]} 6. c4 {
[%emt 0:00:00]} Nf6 {[%emt 0:00:00]} 7. N1c3 {[%emt 0:00:00]} a6 {[%emt 0:00:
00]} 8. Na3 {[%emt 0:00:00]} Be7 {[%emt 0:00:00]} 9. Be2 {[%emt 0:00:00]} O-O {
[%emt 0:00:00]} 10. O-O {[%emt 0:00:00]} b6 {[%emt 0:00:00]} 11. Be3 {[%emt 0:
00:00]} Bb7 {[%emt 0:00:00]} 12. Qb3 {[%emt 0:00:00]} Ne5 {[%emt 0:00:00]} 13.
Bxb6 {[%emt 0:00:00]} Qd7 {[%emt 0:00:00]} 14. Qc2 {[%emt 0:00:00]} Nxe4 {
[%emt 0:00:00]} 15. Nxe4 {[%emt 0:00:00]} Qc6 {[%emt 0:00:00]} 16. Bd4 {
[%emt 0:00:00]} Qxe4 {[%emt 0:00:00]} 17. Qxe4 {[%emt 0:00:00]} Bxe4 {[%emt 0:
00:00]} 18. Rfd1 {[%emt 0:00:00]} Nc6 {[%emt 0:00:00]} 19. Bc3 {[%emt 0:00:00]}
Rfc8 {[%emt 0:00:00]} 20. f3 {[%emt 0:00:00]} Bg6 {[%emt 0:00:00]} 21. g3 {
[%emt 0:00:00]} Rab8 {[%emt 0:00:00]} 22. Rd2 {[%emt 0:00:00]} Nb4 {[%emt 0:00:
00]} 23. b3 {[%emt 0:00:00]} d5 {[%emt 0:00:00]} 24. Kg2 {[%emt 0:00:00]} h6 {
[%emt 0:00:00]} 25. h4 {[%emt 0:00:00]} Bc5 {[%emt 0:00:00]} 26. Be5 {[%emt 0:
00:00]} Ra8 {[%emt 0:00:00]} 27. Bc3 {[%emt 0:00:00]} a5 {[%emt 0:00:00]} 28.
Nb5 {[%emt 0:00:00]} Be3 {[%emt 0:00:00]} 29. Rb2 {[%emt 0:00:00]} Nc2 {
[%emt 0:00:00]} 30. Rd1 {[%emt 0:00:00]} Bc5 {[%emt 0:00:00]} 31. Rc1 {[%emt 0:
00:00]} Na3 {[%emt 0:00:00]} 32. Rd1 {[%emt 0:00:00]} Nxb5 {[%emt 0:00:00]} 33.
cxb5 {[%emt 0:00:00]} Ba3 {[%emt 0:00:00]} 0-1

[Event "89_| Campeonato Brasileiro 2023"]
[Site "Recife"]
[Date "2023.12.15"]
[Round "4.3"]
[White "Alboredo, Julia"]
[Black "Quintiliano Pinto, Renato Rodrigues"]
[Result "0-1"]
[ECO "C41"]
[WhiteElo "2201"]
[BlackElo "2489"]
[PlyCount "74"]
[EventDate "2023.??.??"]
[EventCountry "BRA"]
[TimeControl "90+30"]
[WhiteClock "0:15:54"]
[BlackClock "0:14:45"]

1. e4 {[%emt 0:00:00]} d6 {[%emt 0:00:00]} 2. d4 {[%emt 0:00:00]} Nf6 {[%emt 0:
00:00]} 3. Nc3 {[%emt 0:00:00]} e5 {[%emt 0:00:00]} 4. Nf3 {[%emt 0:00:00]}
Nbd7 {[%emt 0:00:00]} 5. dxe5 {[%emt 0:00:00]} dxe5 {[%emt 0:00:00]} 6. Bc4 {
[%emt 0:00:00]} Be7 {[%emt 0:00:00]} 7. O-O {[%emt 0:00:00]} O-O {[%emt 0:00:
00]} 8. Bg5 {[%emt 0:00:00]} c6 {[%emt 0:00:00]} 9. a4 {[%emt 0:00:00]} Qc7 {
[%emt 0:00:00]} 10. Bh4 {[%emt 0:00:00]} Nc5 {[%emt 0:00:00]} 11. Bg3 {[%emt 0:
00:00]} Bd6 {[%emt 0:00:00]} 12. Qe2 {[%emt 0:00:00]} Bg4 {[%emt 0:00:00]} 13.
h3 {[%emt 0:00:00]} Bh5 {[%emt 0:00:00]} 14. Bh4 {[%emt 0:00:00]} Be7 {[%emt 0:
00:00]} 15. Qe3 {[%emt 0:00:00]} Ncd7 {[%emt 0:00:00]} 16. Ne2 {[%emt 0:00:00]}
Bc5 {[%emt 0:00:00]} 17. Qd3 {[%emt 0:00:00]} Be7 {[%emt 0:00:00]} 18. Ng3 {
[%emt 0:00:00]} Bg6 {[%emt 0:00:00]} 19. Qe2 {[%emt 0:00:00]} Rfe8 {[%emt 0:00:
00]} 20. Bxf6 {[%emt 0:00:00]} Nxf6 {[%emt 0:00:00]} 21. Nh4 {[%emt 0:00:00]}
Rad8 {[%emt 0:00:00]} 22. Nhf5 {[%emt 0:00:00]} Bf8 {[%emt 0:00:00]} 23. h4 {
[%emt 0:00:00]} Bxf5 {[%emt 0:00:00]} 24. Nxf5 {[%emt 0:00:00]} g6 {[%emt 0:00:
00]} 25. Ng3 {[%emt 0:00:00]} h5 {[%emt 0:00:00]} 26. Rfd1 {[%emt 0:00:00]} Bc5
{[%emt 0:00:00]} 27. Nf1 {[%emt 0:00:00]} Kg7 {[%emt 0:00:00]} 28. Qf3 {
[%emt 0:00:00]} Rxd1 {[%emt 0:00:00]} 29. Rxd1 {[%emt 0:00:00]} Rd8 {[%emt 0:
00:00]} 30. Rd3 {[%emt 0:00:00]} Rxd3 {[%emt 0:00:41]} 31. cxd3 {[%emt 0:00:00]
} Ng4 {[%emt 0:00:09]} 32. Ne3 {[%emt 0:00:00]} Bxe3 {[%emt 0:00:07]} 33. fxe3
{[%emt 0:00:00]} Qe7 {[%emt 0:00:22]} 34. d4 {[%emt 0:00:39]} f6 {[%emt 0:00:
17]} 35. d5 {[%emt 0:01:13]} Qc5 {[%emt 0:01:06]} 36. b3 {[%emt 0:01:58]} Nxe3
{[%emt 0:02:07]} 37. Qf2 {[%emt 0:00:16]} Qd4 {[%emt 0:00:26]} 0-1

[Event "89_| Campeonato Brasileiro 2023"]
[Site "Recife"]
[Date "2023.12.15"]
[Round "4.5"]
[White "Lage, Pedro Ferreira"]
[Black "Santiago, Yago De Moura"]
[Result "0-1"]
[ECO "A10"]
[WhiteElo "2115"]
[BlackElo "2476"]
[PlyCount "67"]
[EventDate "2023.??.??"]
[EventCountry "BRA"]
[TimeControl "90+30"]
[WhiteClock "0:03:14"]
[BlackClock "1:05:01"]

1. Nf3 {[%emt 0:00:00]} d5 {[%emt 0:00:00]} 2. e3 {[%emt 0:00:00]} e6 {[%emt 0:
00:00]} 3. b3 {[%emt 0:00:00]} f5 {[%emt 0:00:00]} 4. Bb2 {[%emt 0:00:00]} Nf6
{[%emt 0:00:00]} 5. c4 {[%emt 0:00:00]} a5 {[%emt 0:00:00]} 6. a3 {[%emt 0:00:
00]} Bd6 {[%emt 0:00:00]} 7. Be2 {[%emt 0:00:00]} O-O {[%emt 0:00:00]} 8. O-O {
[%emt 0:00:00]} Qe7 {[%emt 0:00:00]} 9. Ne5 {[%emt 0:00:00]} b6 {[%emt 0:00:00]
} 10. d3 {[%emt 0:00:00]} Bb7 {[%emt 0:00:00]} 11. Nd2 {[%emt 0:00:00]} c6 {
[%emt 0:00:00]} 12. Ra2 {[%emt 0:00:00]} c5 {[%emt 0:00:00]} 13. Qa1 {[%emt 0:
00:00]} Qc7 {[%emt 0:00:00]} 14. f4 {[%emt 0:00:00]} Nc6 {[%emt 0:00:00]} 15.
Ndf3 {[%emt 0:00:00]} a4 {[%emt 0:00:00]} 16. bxa4 {[%emt 0:00:00]} Rxa4 {
[%emt 0:00:00]} 17. Nxc6 {[%emt 0:00:00]} Bxc6 {[%emt 0:00:00]} 18. Ne5 {
[%emt 0:00:00]} dxc4 {[%emt 0:00:00]} 19. Nxc4 {[%emt 0:00:00]} Be7 {[%emt 0:
00:00]} 20. Be5 {[%emt 0:00:00]} Qd8 {[%emt 0:00:00]} 21. Rc1 {[%emt 0:00:00]}
b5 {[%emt 0:00:00]} 22. Nd2 {[%emt 0:00:00]} Bd5 {[%emt 0:00:00]} 23. Bd1 {
[%emt 0:00:00]} Ra7 {[%emt 0:00:00]} 24. Rb2 {[%emt 0:00:00]} Qa8 {[%emt 0:00:
00]} 25. Nb1 {[%emt 0:00:00]} b4 {[%emt 0:00:00]} 26. a4 {[%emt 0:02:55]} Nd7 {
[%emt 0:00:00]} 27. Re2 {[%emt 0:05:30]} Nxe5 {[%emt 0:00:00]} 28. Qxe5 {
[%emt 0:00:20]} Bf6 {[%emt 0:00:00]} 29. Qd6 {[%emt 0:00:27]} Ra6 {[%emt 0:00:
00]} 30. Qd7 {[%emt 0:00:30]} Rf7 {[%emt 0:00:00]} 31. Qb5 {[%emt 0:00:30]} Ra5
{[%emt 0:00:00]} 32. Qb6 {[%emt 0:00:30]} Bd8 {[%emt 0:00:00]} 33. Qd6 {
[%emt 0:03:20]} Bb6 {[%emt 0:00:00]} 34. Qxb6 {[%emt 0:01:14]} 0-1

[Event "89_| Campeonato Brasileiro 2023"]
[Site "Recife"]
[Date "2023.12.15"]
[Round "4.6"]
[White "Madeira, Wagner Martins"]
[Black "Molina, Roberto Junio Brito"]
[Result "1/2-1/2"]
[ECO "B22"]
[WhiteElo "2114"]
[BlackElo "2381"]
[PlyCount "95"]
[EventDate "2023.??.??"]
[EventCountry "BRA"]
[TimeControl "90+30"]
[WhiteClock "0:00:37"]
[BlackClock "0:01:34"]

{[%evp 9,95,31,35,13,16,0,0,0,0,-73,-22,-38,-16,-14,19,-77,-47,-45,-25,-97,-21,
-21,-18,-61,-24,-25,-3,-1,-3,-4,-3,-5,0,-7,-3,-9,0,0,0,0,0,5,22,20,29,0,2,3,4,
6,5,0,464,464,457,464,446,401,432,429,444,411,411,365,516,514,507,49,538,540,
526,529,495,505,681,662,778,606,906,627,591,583,498,11,5,0,0,0]} 1. e4 {
[%emt 0:00:00]} c5 {[%emt 0:00:00]} 2. c3 {[%emt 0:00:00]} d5 {[%emt 0:00:00]}
3. exd5 {[%emt 0:00:00]} Qxd5 {[%emt 0:00:00]} 4. Nf3 {[%emt 0:00:00]} g6 {
[%emt 0:00:00]} 5. Na3 {[%emt 0:00:00]} Bg7 {[%emt 0:00:00]} 6. Bc4 {[%emt 0:
00:00] B22: Sicilian: 2 c3.} Qe4+ {[%emt 0:00:00]} 7. Kf1 {[%emt 0:00:00] Ng5
is the strong threat.} Be6 {[%emt 0:00:00]} 8. Bb5+ {[%emt 0:00:00]} Bd7 {
[%emt 0:00:00]} 9. Qb3 {[%eval -73,25] [%emt 0:00:00]} (9. Bc4 $11 {[%eval 0,
29]} Qf5 10. h3) 9... Bxb5+ {[%emt 0:00:00]} 10. Nxb5 $146 {[%emt 0:00:00]} ({
Predecessor:} 10. Qxb5+ Qc6 11. d3 a6 12. Qxc6+ Nxc6 13. Be3 b6 14. Nc4 Rb8 15.
Bf4 Rb7 16. Re1 {1/2-1/2 (45) Mangold,T (1896)-Giese,G (1899) Mecklenburg VP
2013}) 10... Qd3+ {[%emt 0:00:00]} (10... Qc6 {with more complications.} 11. h4
h5 12. d4 a6 13. Na3 b5) 11. Kg1 {[%emt 0:00:00]} Na6 {[%emt 0:00:00]} 12. c4 {
[%eval -77,27] [%emt 0:00:00]} (12. Qa4 $11 {[%eval 19,27]} Kf8 13. h4) 12...
Qd7 {[%emt 0:00:00]} 13. d3 {[%emt 0:00:00]} Nh6 {[%emt 0:00:00]} 14. h4 {
[%eval -97,22] [%emt 0:00:00]} (14. Bxh6 $11 {[%eval -25,25] keeps the balance.
} Bxh6 15. h4) 14... Nf5 {[%eval -21,26] [%emt 0:00:00]} (14... Ng4 $17 {
[%eval -97,22]} 15. Be3 h5) 15. h5 $11 {[%emt 0:00:00]} O-O {[%emt 0:00:00]}
16. Bf4 {[%emt 0:00:00]} Nb4 {[%emt 0:00:00]} 17. d4 {[%emt 0:00:00]} Nxd4 {
[%emt 0:06:39]} 18. Nbxd4 {[%emt 0:00:00]} Bxd4 {[%emt 0:00:01]} 19. Nxd4 {
[%emt 0:00:00]} Qxd4 {[%emt 0:00:01]} 20. Be3 {[%emt 0:00:00]} Qe5 {[%emt 0:02:
12]} 21. a3 {[%emt 0:00:00]} Nc6 {[%emt 0:00:05]} 22. Qxb7 {[%emt 0:03:03]} Nd4
{[%emt 0:00:04]} 23. Bxd4 {[%emt 0:00:34]} cxd4 {[%emt 0:00:26]} 24. Qf3 {
[%emt 0:00:28]} d3 {[%emt 0:03:05]} 25. Qxd3 {[%emt 0:01:28]} Qxb2 {[%emt 0:00:
30]} 26. Re1 {[%emt 0:00:57]} e6 {[%emt 0:00:39]} 27. Qh3 {[%emt 0:05:16]
Strongly threatening hxg6.} Rfd8 {[%emt 0:00:21]} 28. hxg6 {[%emt 0:01:07]}
hxg6 {[%emt 0:00:00]} 29. Qh7+ {[%emt 0:00:34]} Kf8 {[%emt 0:00:01]} 30. Rh3
$40 {[%emt 0:01:09][%mdl 128] White attacks.} Ke7 $2 {[%eval 464,22] [%emt 0:
01:17][%mdl 8192]} (30... Rac8 $11 {[%eval 0,39] and Black stays safe.}) 31.
Rf3 $18 {[%emt 0:00:25]} Rf8 {[%emt 0:00:04]} 32. Qh4+ {[%emt 0:00:18]} Ke8 {
[%emt 0:00:25]} 33. Qe4 {[%emt 0:00:21] White wants to mate with Qc6+.} Rd8 {
[%emt 0:01:37]} 34. Qc6+ {[%emt 0:00:25]} Ke7 {[%emt 0:00:15]} 35. Qc5+ {
[%emt 0:00:39][%mdl 64] [#] Double Attack} Rd6 {[%emt 0:00:14]} 36. Qxa7+ {
[%emt 0:00:16]} Rd7 {[%eval 516,25] [%emt 0:00:01]} (36... Ke8 $142 {[%eval
365,28]} 37. c5 Qd2) 37. Qc5+ {[%emt 0:00:13]} Rd6 {[%emt 0:00:01]} 38. Qb4 $2
{[%eval 49,28] [%emt 0:02:10]} (38. Qc7+ $18 {[%eval 507,27]} Rd7 39. Qc5+ Rd6
40. Qg5+ f6 41. Qxg6) 38... Rb8 $2 {[%eval 538,25] [%emt 0:00:08][%mdl 8192] 
[#]} ({Black should try} 38... Qxb4 $14 {[%eval 49,28]} 39. axb4 Rd4) 39. Rxf7+
$1 {[%emt 0:00:30][%mdl 576] Deflection} Kxf7 {[%emt 0:00:01]} 40. Qxd6 {
[%emt 0:00:00][%mdl 4096] Endgame KQR-KQR} Re8 {[%emt 0:01:03]} 41. c5 {
[%emt 0:00:30]} Qxa3 {[%emt 0:00:08]} 42. Qf4+ {[%emt 0:00:31]} Kg7 {[%emt 0:
01:59]} 43. Qe5+ {[%emt 0:00:27]} Kf7 {[%emt 0:00:20]} 44. Ra1 {[%emt 0:00:17]}
Qb4 {[%emt 0:01:00]} 45. Ra7+ {[%emt 0:00:54]} Re7 {[%emt 0:00:01]} 46. Qa1 $2
{[%eval 11,38] [%emt 0:01:25]} (46. Rxe7+ $18 {[%eval 498,25]} Kxe7 47. Qg7+ {
[%mdl 64] Double Attack} Ke8 48. Qxg6+ Ke7 49. Qg7+ Ke8 50. c6 Qe1+ 51. Kh2
Qxf2 52. Qd7+ Kf8 53. Qxe6) 46... Qxc5 $11 {[%emt 0:00:14]} 47. Ra8 {[%emt 0:
00:23] Black must now prevent Rh8.} Rc7 {[%emt 0:00:34]} 48. g3 {[%emt 0:00:33]
Accuracy: White = 68%, Black = 53%.} 1/2-1/2

[Event "89_| Campeonato Brasileiro 2023"]
[Site "Recife"]
[Date "2023.12.15"]
[Round "4.7"]
[White "Filgueiras, Nathan Felipe"]
[Black "Cordeiro, Marco Aurelio Zaror"]
[Result "1-0"]
[ECO "C11"]
[WhiteElo "2295"]
[BlackElo "2054"]
[PlyCount "83"]
[EventDate "2023.??.??"]
[EventCountry "BRA"]
[TimeControl "90+30"]
[WhiteClock "0:07:46"]
[BlackClock "0:04:07"]

1. e4 {[%emt 0:00:00]} Nf6 {[%emt 0:00:00]} 2. Nc3 {[%emt 0:00:00]} d5 {
[%emt 0:00:00]} 3. e5 {[%emt 0:00:00]} Nfd7 {[%emt 0:00:00]} 4. d4 {[%emt 0:00:
00]} e6 {[%emt 0:00:00]} 5. Nce2 {[%emt 0:00:00]} c5 {[%emt 0:00:00]} 6. c3 {
[%emt 0:00:00]} b6 {[%emt 0:00:00]} 7. Nf4 {[%emt 0:00:00]} Ba6 {[%emt 0:00:00]
} 8. Bxa6 {[%emt 0:00:00]} Nxa6 {[%emt 0:00:00]} 9. Nf3 {[%emt 0:00:00]} cxd4 {
[%emt 0:00:00]} 10. cxd4 {[%emt 0:00:00]} Bb4+ {[%emt 0:00:00]} 11. Kf1 {
[%emt 0:00:00]} Nc7 {[%emt 0:07:00]} 12. g3 {[%emt 0:00:00]} O-O {[%emt 0:00:
00]} 13. Kg2 {[%emt 0:00:00]} Re8 {[%emt 0:00:00]} 14. h4 {[%emt 0:00:00]} f6 {
[%emt 0:00:00]} 15. Nd3 {[%emt 0:00:00]} Bf8 {[%emt 0:00:00]} 16. exf6 {
[%emt 0:00:00]} gxf6 {[%emt 0:00:00]} 17. Bf4 {[%emt 0:00:00]} Nb5 {[%emt 0:00:
00]} 18. Qb3 {[%emt 0:00:00]} Nd6 {[%emt 0:00:00]} 19. Rhe1 {[%emt 0:00:00]}
Nf7 {[%emt 0:00:00]} 20. Re2 {[%emt 0:00:00]} Bg7 {[%emt 0:00:00]} 21. Rae1 {
[%emt 0:00:00]} Nf8 {[%emt 0:00:00]} 22. Bd2 {[%emt 0:00:00]} Qd7 {[%emt 0:00:
00]} 23. Nf4 {[%emt 0:00:00]} Rad8 {[%emt 0:00:00]} 24. Nh5 {[%emt 0:00:00]}
Bh8 {[%emt 0:00:00]} 25. Nh2 {[%emt 0:00:00]} e5 {[%emt 0:00:00]} 26. Qf3 {
[%emt 0:00:00]} f5 {[%emt 0:00:00]} 27. dxe5 {[%emt 0:00:00]} Nxe5 {[%emt 0:00:
00]} 28. Qb3 {[%emt 0:00:00]} Qf7 {[%emt 0:00:00]} 29. Nf4 {[%emt 0:00:50]} d4
{[%emt 0:00:00]} 30. Nf3 {[%emt 0:03:10]} Qxb3 {[%emt 0:00:00]} 31. axb3 {
[%emt 0:00:30]} Nxf3 {[%emt 0:00:00]} 32. Kxf3 {[%emt 0:00:05]} Kf7 {[%emt 0:
00:00]} 33. Nd3 {[%emt 0:00:57]} Ne6 {[%emt 0:04:19]} 34. Bf4 {[%emt 0:01:13]}
Bf6 {[%emt 0:02:19]} 35. b4 {[%emt 0:00:59]} Rc8 {[%emt 0:01:15]} 36. Be5 {
[%emt 0:00:30]} Rcd8 {[%emt 0:00:30]} 37. Rc1 {[%emt 0:00:30]} Bxe5 {[%emt 0:
00:30]} 38. Rxe5 {[%emt 0:00:30]} Rc8 {[%emt 0:00:30]} 39. Rxf5+ {[%emt 0:00:
30]} Kg6 {[%emt 0:00:30]} 40. Rxc8 {[%emt 0:00:30]} Rxc8 {[%emt 0:00:30]} 41.
g4 {[%emt 0:00:30]} Rc2 {[%emt 0:00:30]} 42. Re5 {[%emt 0:04:00]} 1-0